bitfinex/quotes_ETHUSD_20241001
["timestamp","ask_amount","ask_price","bid_price","bid_amount"]
[1727751817826,7.62124,2624.3,2624.0,0.92287542]
[1727751818235,3.8106,2624.3,2624.0,0.92287542]
[1727751818426,3.81069,2624.2,2624.0,0.06166383]
[1727751820024,3.8106,2624.3,2624.0,0.06166383]
[1727751820363,3.81068,2624.2,2624.0,0.06166383]
[1727751820926,3.8106,2624.3,2624.0,0.06166383]
[1727751821548,3.8106,2624.3,2624.0,0.91525192]
[1727751824958,3.81044,2624.4,2624.0,0.91525192]
[1727751825361,3.81044,2624.4,2624.1,0.7609]
[1727751825871,3.81053,2624.3,2624.2,0.06140959]
[1727751826166,5.44574455,2624.5,2624.2,0.06140959]
[1727751826343,3.81039,2624.4,2624.2,0.06140959]
[1727751827010,3.81053,2624.3,2624.2,0.06140959]
[1727751828692,3.81035,2624.5,2624.2,0.06140959]
[1727751829018,3.81034,2624.5,2624.2,0.06140959]
[1727751829220,7.62068,2624.5,2624.2,0.06140959]
[1727751829516,3.81034,2624.5,2624.2,0.06140959]
[1727751829708,3.81044,2624.4,2624.2,0.06140959]
[1727751830742,3.81034,2624.5,2624.3,0.7925]
[1727751831035,3.81034,2624.5,2624.4,0.44668256]
[1727751831340,3.81034,2624.5,2624.4,0.0612916]
[1727751834898,6.26433455,2624.5,2624.4,0.0612916]
[1727751835442,3.81127,2623.8,2623.4,0.7962]
[1727751835735,3.81122,2623.9,2623.4,4.60804]
[1727751836038,3.81122,2623.9,2623.5,0.51601835]
[1727751836399,7.62178,2624.1,2623.5,3.51601835]
[1727751836604,3.81085,2624.1,2623.6,0.8117]
[1727751836822,3.81085,2624.1,2623.7,0.81394084]
[1727751836823,7.62176,2624.1,2623.7,0.81394084]
[1727751837028,7.62176,2624.1,2623.7,0.86912502]
[1727751837231,3.81085,2624.1,2623.7,0.86912502]
[1727751837814,3.81102,2624.0,2623.7,0.86912502]
[1727751838141,7.62182,2624.1,2623.7,0.86912502]
[1727751838320,9.25721455,2624.1,2623.7,0.86912502]
[1727751840025,9.25716455,2624.1,2623.7,0.86912502]
[1727751840332,5.44624455,2624.1,2623.7,0.86912502]
[1727751840642,9.25718455,2624.1,2623.7,0.86912502]
[1727751841002,5.44624455,2624.1,2623.7,3.86912502]
[1727751842219,1.63539455,2624.1,2623.7,3.86912502]
[1727751842537,3.81098,2624.0,2623.8,0.8492305]
[1727751842744,3.81098,2624.0,2623.7,0.05518418]
[1727751842906,3.81098,2624.0,2623.9,0.05535133]
[1727751843106,5.44623455,2624.1,2623.8,0.05536642]
[1727751843327,5.44623455,2624.1,2623.9,0.05535133]
[1727751843527,9.25715455,2624.1,2623.9,0.05535133]
[1727751843727,9.25715455,2624.1,2623.6,0.8117]
[1727751844004,5.44623455,2624.1,2623.7,0.8084174]
[1727751844204,9.25713455,2624.1,2623.7,0.8637989]
[1727751844737,5.44623455,2624.1,2623.7,0.8637989]
[1727751845327,9.25714455,2624.1,2623.7,0.8637989]
[1727751846561,5.44623455,2624.1,2623.7,0.8637989]
[1727751847730,5.44623455,2624.1,2623.7,3.8637989]
[1727751848068,5.44623455,2624.1,2623.8,0.84870489]
[1727751848366,5.44623455,2624.1,2623.8,0.90426424]
[1727751850241,9.25714455,2624.1,2623.8,0.90426424]
[1727751850457,6.23461455,2623.9,2623.8,0.05555935]
[1727751850657,2.42349455,2623.9,2623.5,3.0]
[1727751850970,1.63539455,2623.9,2623.8,0.05555935]
[1727751851171,1.63539455,2623.9,2623.6,0.759814]
[1727751851468,1.63539455,2623.9,2623.7,0.05557443]
[1727751852881,5.44652455,2623.9,2623.7,0.05557443]
[1727751853976,5.44652455,2623.9,2623.5,3.0]
[1727751854175,5.44652455,2623.9,2623.8,0.05555935]
[1727751854344,5.44652455,2623.9,2623.5,3.0]
[1727751854545,5.44652455,2623.9,2623.8,0.05555935]
[1727751854771,1.63539455,2623.9,2623.5,6.81161]
[1727751854954,5.44651455,2623.9,2623.8,0.05555935]
[1727751855158,5.44651455,2623.9,2623.5,3.0]
[1727751855340,5.44651455,2623.9,2623.8,0.05555935]
[1727751855543,5.44651455,2623.9,2623.5,3.759823]
[1727751855743,5.44651455,2623.9,2623.8,0.05555935]
[1727751855959,5.44651455,2623.9,2623.5,3.0]
[1727751856153,5.44651455,2623.9,2623.8,0.05555935]
[1727751856373,5.44651455,2623.9,2623.5,3.0]
[1727751856572,5.44651455,2623.9,2623.8,0.05555935]
[1727751856778,5.44651455,2623.9,2623.5,3.0]
[1727751856977,5.44651455,2623.9,2623.8,0.05381257]
[1727751857176,5.44651455,2623.9,2623.5,3.0]
[1727751857384,5.44651455,2623.9,2623.8,0.05381257]
[1727751857546,5.44651455,2623.9,2623.5,3.0]
[1727751857750,5.44651455,2623.9,2623.8,0.05381257]
[1727751857963,5.44651455,2623.9,2623.5,3.0]
[1727751858490,5.44651455,2623.9,2623.6,0.05384274]
[1727751859383,3.81097,2624.0,2623.6,0.05384274]
[1727751860191,3.80144201,2624.0,2623.6,0.05384274]
[1727751861358,5.44651455,2623.9,2623.6,0.05384274]
[1727751862160,1.63539455,2623.9,2623.6,0.05384274]
[1727751862357,1.63539455,2623.9,2623.6,1.20021701]
[1727751885752,3.81079,2624.2,2623.7,3.7585]
[1727751885891,3.81085,2624.1,2623.7,0.7585]
[1727751886095,3.81098,2624.0,2623.8,0.05379943]
[1727751886334,3.81098,2624.0,2623.7,0.7585]
[1727751886511,3.81098,2624.0,2623.8,0.05379943]
[1727751886702,7.62203,2624.0,2623.5,3.7585]
[1727751887066,3.81098,2624.0,2623.6,0.8108506]
[1727751887226,3.81098,2624.0,2623.6,3.8108506]
[1727751890037,7.62204,2624.0,2623.6,3.8108506]
[1727751890332,3.81098,2624.0,2623.6,3.8108506]
[1727751894945,5.44625455,2624.1,2623.6,7.6223506]
[1727751895237,5.44625455,2624.1,2623.7,1.21924606]
[1727751895431,5.44625455,2624.1,2623.6,7.6223506]
[1727751895605,5.44625455,2624.1,2623.8,0.05379943]
[1727751895808,5.44625455,2624.1,2623.7,0.05381452]
[1727751896041,5.44625455,2624.1,2623.9,0.05378435]
[1727751896205,5.44625455,2624.1,2623.8,0.05378193]
[1727751896405,5.44625455,2624.1,2624.0,0.05375177]
[1727751896618,5.44625455,2624.1,2623.9,0.05376685]
[1727751896819,5.44625455,2624.1,2624.0,0.05375177]
[1727751897141,5.44625455,2624.1,2623.6,3.0]
[1727751897438,5.44625455,2624.1,2623.7,0.05379702]
[1727751898996,5.44625455,2624.1,2623.7,0.81618872]
[1727751899402,1.63539455,2624.1,2623.7,0.81618872]
[1727751900240,1.63539455,2624.1,2623.7,4.62757872]
[1727751900420,1.63539455,2624.1,2623.8,3.0]
[1727751900817,1.63539455,2624.1,2623.9,0.05376685]
[1727751901239,5.44623455,2624.1,2623.9,0.05376685]
[1727751901806,5.44623455,2624.1,2623.7,0.7623917]
[1727751902110,5.44623455,2624.1,2624.0,0.05375177]
[1727751902250,5.44623455,2624.1,2623.7,0.7623917]
[1727751902850,5.44623455,2624.1,2623.8,0.05378193]
[1727751903220,5.44623455,2624.1,2623.6,6.81154]
[1727751903451,5.44623455,2624.1,2623.9,0.05376685]
[1727751903656,5.44623455,2624.1,2623.6,6.81154]
[1727751903856,5.44623455,2624.1,2624.0,0.05375177]
[1727751904017,5.44623455,2624.1,2623.6,6.81154]
[1727751904217,5.44623455,2624.1,2624.0,0.05375177]
[1727751904740,5.44623455,2624.1,2623.6,6.81154]
[1727751905056,5.44623455,2624.1,2623.7,0.89043062]
[1727751906170,3.811,2624.0,2623.7,0.89043062]
[1727751914335,5.44625455,2624.1,2623.7,0.89043062]
[1727751914735,5.44625455,2624.1,2623.7,3.89043062]
[1727751915484,3.81099,2624.0,2623.7,3.89043062]
[1727751915766,3.81099,2624.0,2623.7,0.89043062]
[1727751915978,3.81078,2624.2,2623.8,0.38904306]
[1727751916151,3.8104,2624.4,2624.0,3.0]
[1727751916331,3.8104,2624.4,2624.1,0.05368852]
[1727751916675,3.81019,2624.6,2624.1,0.05368852]
[1727751917040,3.81029,2624.5,2624.1,0.05368852]
[1727751917234,3.81019,2624.6,2624.1,0.05368852]
[1727751917235,3.8104,2624.4,2624.1,0.05368852]
[1727751917460,5.44592455,2624.3,2624.1,0.05368852]
[1727751917972,5.44592455,2624.3,2623.9,0.8188]
[1727751917973,5.44592455,2624.3,2624.2,0.0535596]
[1727751918134,5.44592455,2624.3,2623.9,0.8188]
[1727751918135,3.81053,2624.3,2623.9,3.8188]
[1727751918334,5.44573455,2624.5,2624.0,0.05358976]
[1727751918576,5.44573455,2624.5,2624.0,3.05358976]
[1727751918931,7.35,2625.0,2624.1,4.62259]
[1727751918932,3.81004,2624.7,2624.1,4.62259]
[1727751919136,3.81004,2624.7,2624.2,9.00137884]
[1727751919335,3.81004,2624.7,2624.2,5.19069884]
[1727751919575,3.81004,2624.7,2624.2,9.00128884]
[1727751921466,3.80976,2624.9,2624.4,3.0]
[1727751921467,3.80983,2624.8,2624.4,3.0]
[1727751921666,3.80996,2624.7,2624.5,0.05349248]
[1727751921908,3.80996,2624.7,2624.3,3.0]
[1727751922063,3.80996,2624.7,2624.4,0.89477292]
[1727751922409,3.80996,2624.7,2624.4,0.94828048]
[1727751923296,4.59016,2624.9,2624.4,0.94828048]
[1727751923465,3.8099,2624.8,2624.4,0.94828048]
[1727751924511,3.8099,2624.8,2624.5,0.7788]
[1727751924668,3.8099,2624.8,2624.6,0.0534774]
[1727751928168,3.80911,2625.3,2624.7,0.7721]
[1727751928169,3.80953,2625.0,2624.7,0.7721]
[1727751928391,3.80953,2625.0,2624.8,0.05344725]
[1727751928579,3.80953,2625.0,2624.7,0.7721]
[1727751928580,3.80947,2625.1,2624.7,0.7721]
[1727751928799,3.80947,2625.1,2624.8,0.05321085]
[1727751929197,3.80946,2625.1,2624.7,3.7721]
[1727751929399,7.61895,2625.1,2624.9,0.05319578]
[1727751929628,3.80952,2625.0,2624.8,0.05321085]
[1727751929790,3.80946,2625.1,2625.0,0.05318071]
[1727751929993,3.80946,2625.1,2624.7,3.7721]
[1727751930189,4.59252,2625.3,2624.7,3.7721]
[1727751930190,4.59248,2625.3,2624.8,0.05321085]
[1727751930428,4.59248,2625.3,2624.7,1.530318]
[1727751930701,5.44469455,2625.2,2624.8,0.05321085]
[1727751930912,3.80952,2625.0,2624.6,0.55]
[1727751931229,3.80952,2625.0,2624.7,0.05322593]
[1727751931885,3.80952,2625.0,2624.7,0.1404855]
[1727751932085,4.57632,2625.0,2624.7,0.1404855]
[1727751932925,4.57632,2625.0,2624.7,3.96574805]
[1727751932926,0.7668,2625.0,2624.7,3.96574805]
[1727751933137,3.80939,2625.1,2624.7,3.96574805]
[1727751933290,3.80947,2625.1,2624.7,3.96574805]
[1727751934404,3.80954,2625.0,2624.7,0.96574805]
[1727751938304,5.44479455,2625.1,2624.9,0.14028765]
[1727751939137,3.80952,2625.0,2624.9,0.14028765]
[1727751939437,3.80985,2624.8,2624.4,3.0]
[1727751939710,3.80985,2624.8,2624.4,4.145015]
[1727751939836,7.61978,2624.8,2624.4,1.145015]
[1727751940026,3.81011,2624.6,2624.4,1.145015]
[1727751940216,2.38889455,2624.7,2624.2,4.36057]
[1727751940658,2.38889455,2624.7,2624.3,3.0]
[1727751941439,6.19885455,2624.7,2624.3,3.0]
[1727751942268,2.38889455,2624.7,2624.3,6.81053]
[1727751942446,2.38889455,2624.7,2624.4,1.11711]
[1727751942750,6.19886455,2624.7,2624.4,1.11711]
[1727751943534,2.38889455,2624.7,2624.4,1.11711]
[1727751945884,2.38889455,2624.7,2624.5,0.14034808]
[1727751946374,2.38889455,2624.7,2624.3,3.0]
[1727751946532,2.38889455,2624.7,2624.4,0.14036648]
[1727751947710,5.44563455,2624.5,2624.4,0.14036648]
[1727751947975,2.42619455,2624.5,2623.8,0.823]
[1727751948184,3.80919,2625.3,2623.9,0.14047165]
[1727751948185,1.63539455,2624.0,2623.9,0.14047165]
[1727751948487,1.63539455,2624.0,2623.6,4.63204]
[1727751948780,1.63539455,2624.0,2623.6,0.8205]
[1727751948942,1.63539455,2623.8,2623.7,0.14050847]
[1727751949136,1.63539455,2623.8,2623.3,4.60747]
[1727751949342,1.63539455,2623.8,2623.4,3.98264604]
[1727751949747,1.63539455,2623.8,2623.5,3.0]
[1727751949958,1.63539455,2623.8,2623.6,0.14092087]
[1727751950156,1.63539455,2623.8,2623.4,0.841951]
[1727751950356,1.63539455,2623.6,2623.5,0.14093929]
[1727751950581,6.22091455,2623.8,2623.5,0.14093929]
[1727751950783,1.63539455,2623.6,2623.5,0.14093929]
[1727751951022,1.63539455,2623.6,2623.0,3.81233]
[1727751951302,1.63539455,2623.6,2623.5,0.14093929]
[1727751951478,1.63539455,2623.6,2623.1,1.213533]
[1727751951652,1.63539455,2623.6,2623.5,0.14093929]
[1727751951852,1.63539455,2623.6,2623.2,3.8121]
[1727751952083,1.63539455,2623.6,2623.5,0.14093929]
[1727751952258,1.63539455,2623.6,2623.3,3.0]
[1727751952464,1.63539455,2623.6,2623.5,0.14093929]
[1727751952652,1.63539455,2623.6,2623.4,0.1409577]
[1727751952853,1.63539455,2623.6,2623.5,0.14093929]
[1727751953186,1.63539455,2623.6,2623.3,3.0]
[1727751953350,1.63539455,2623.6,2623.4,0.1409577]
[1727751954618,0.7604,2623.5,2623.0,3.81233]
[1727751954809,1.63539455,2623.4,2623.1,3.0]
[1727751955450,0.7604,2623.5,2623.1,3.0]
[1727751957294,1.63539455,2623.4,2623.1,3.0]
[1727751957592,1.63539455,2623.4,2622.9,3.8148]
[1727751957749,1.63539455,2623.4,2622.9,4.277548]
[1727751958349,1.63539455,2623.2,2622.9,3.8148]
[1727751958580,1.63539455,2623.2,2622.9,3.0]
[1727751960503,5.44723455,2623.4,2622.9,3.0]
[1727751960687,1.63539455,2623.4,2623.0,3.81241]
[1727751960868,1.63539455,2623.4,2623.1,3.0]
[1727751961306,1.63539455,2623.4,2623.2,0.1367725]
[1727751961597,5.44731455,2623.4,2623.2,0.1367725]
[1727751961802,5.44731455,2623.4,2622.9,3.0]
[1727751961960,5.44731455,2623.4,2623.3,0.13675408]
[1727751962308,5.44731455,2623.4,2622.9,3.0]
[1727751962458,5.44731455,2623.4,2623.3,0.13675408]
[1727751962663,5.44731455,2623.4,2622.9,3.0]
[1727751962978,0.7604,2623.5,2622.9,7.953555]
[1727751963295,4.57211,2623.5,2623.0,0.93880934]
[1727751963606,3.81184,2623.4,2623.0,0.93880934]
[1727751964108,0.7604,2623.5,2623.0,0.93880934]
[1727751964324,0.7604,2623.5,2623.1,3.0]
[1727751964684,4.57214,2623.5,2623.2,0.1367725]
[1727751965198,0.7604,2623.5,2623.2,0.1367725]
[1727751966501,4.57221,2623.5,2623.2,0.1367725]
[1727751966961,4.57221,2623.5,2623.0,0.802]
[1727751967161,4.57221,2623.5,2623.1,0.13679092]
[1727751967406,0.7604,2623.5,2623.1,0.13679092]
[1727751967706,3.81202,2623.3,2623.1,0.13679092]
[1727751968106,3.81202,2623.3,2622.8,0.7594]
[1727751968267,3.81202,2623.3,2623.2,0.13683793]
[1727751968578,5.44735455,2623.4,2623.2,0.13683793]
[1727751968763,5.44735455,2623.4,2622.9,3.0]
[1727751968959,5.44735455,2623.4,2623.0,0.13687478]
[1727751969407,5.44733455,2623.4,2623.0,0.13687478]
[1727751969741,9.25928455,2623.4,2623.0,0.13687478]
[1727751969859,5.44733455,2623.4,2623.0,0.13687478]
[1727751970272,3.81201,2623.3,2623.0,0.13687478]
[1727751970678,5.44733455,2623.4,2623.0,0.13687478]
[1727751971015,3.81194,2623.4,2623.0,0.98349436]
[1727751972415,3.81199,2623.3,2623.0,0.98349436]
[1727751972790,5.44733455,2623.4,2623.0,0.98349436]
[1727751973316,0.7604,2623.5,2623.0,0.98349436]
[1727751973317,4.57218,2623.5,2623.0,0.98349436]
[1727751973833,4.57218,2623.5,2623.1,3.0]
[1727751974021,4.57218,2623.5,2623.1,0.69834944]
[1727751974338,3.81187,2623.4,2623.2,0.13683793]
[1727751974536,3.81199,2623.3,2623.2,0.13683793]
[1727751974830,3.81187,2623.4,2623.2,0.13683793]
[1727751975432,3.81187,2623.4,2622.9,3.0]
[1727751975637,7.6238,2623.4,2623.0,0.89407378]
[1727751976121,3.81199,2623.3,2623.0,0.89407378]
[1727751976498,3.81187,2623.4,2623.0,0.89407378]
[1727751976943,7.62384,2623.4,2623.0,0.89407378]
[1727751977098,3.81187,2623.4,2623.0,0.89407378]
[1727751977307,7.6238,2623.4,2623.0,0.89407378]
[1727751977599,3.81187,2623.4,2623.0,0.89407378]
[1727751977907,5.44754455,2623.2,2623.0,0.13687478]
[1727751978105,6.22154455,2623.2,2623.0,0.13687478]
[1727751978436,6.22154455,2623.2,2623.1,0.13688252]
[1727751978778,10.03376455,2623.2,2622.7,3.0]
[1727751978910,6.22154455,2623.2,2623.1,0.13688252]
[1727751979104,6.22154455,2623.2,2622.8,0.758761]
[1727751979340,6.22154455,2623.2,2623.1,0.13688252]
[1727751979602,7.62499,2623.0,2622.6,0.7747]
[1727751979832,6.22834455,2622.9,2622.4,4.58526]
[1727751980037,6.22834455,2622.9,2622.5,0.458526]
[1727751980639,6.22830455,2622.9,2622.5,0.458526]
[1727751980807,6.22830455,2622.9,2622.5,3.458526]
[1727751982627,6.22830455,2622.9,2622.5,3.0]
[1727751983352,2.41569455,2622.9,2622.5,3.0]
[1727751984775,0.7803,2622.9,2622.5,6.81306]
[1727751985341,0.8326,2623.1,2622.7,3.0]
[1727751985581,0.8326,2623.1,2622.7,4.83612311]
[1727751985936,3.81223,2623.2,2622.8,3.0]
[1727751988436,11.16194,2623.4,2622.8,3.0]
[1727751988658,7.35,2623.4,2623.1,3.0]
[1727751988867,7.35,2623.4,2623.2,0.681232]
[1727751989045,3.81173,2623.5,2623.2,0.681232]
[1727751989965,1.63539455,2623.6,2623.2,0.681232]
[1727751990168,3.8115,2623.7,2623.3,3.769]
[1727751990473,3.8115,2623.7,2623.3,4.5952262]
[1727751990963,3.8115,2623.7,2623.4,0.13245156]
[1727751991358,6.25850455,2623.9,2623.4,0.13245156]
[1727751991563,3.81127,2623.8,2623.4,0.13245156]
[1727751992374,3.81149,2623.7,2623.4,0.13245156]
[1727751992891,7.35,2624.1,2623.4,0.59071992]
[1727751993174,4.58782,2624.6,2624.0,4.63539455]
[1727751993387,17.70815,2626.0,2624.1,1.63539455]
[1727751993388,0.7777,2624.9,2624.1,1.63539455]
[1727751993564,4.58738,2624.9,2624.3,4.63539455]
[1727751993874,3.8095,2625.1,2624.3,4.71159976]
[1727751994048,3.8095,2625.1,2624.4,0.13158102]
[1727751994247,0.7621,2625.2,2624.6,3.7993]
[1727751994488,4.57144,2625.2,2624.6,0.7993]
[1727751994677,4.57144,2625.2,2624.7,0.13152581]
[1727751995046,1.63539455,2625.3,2624.7,0.13152581]
[1727751995379,5.44449455,2625.3,2624.7,0.13152581]
[1727751995602,3.8091,2625.3,2624.7,0.13152581]
[1727751996179,0.794,2625.4,2624.7,0.13152581]
[1727751996356,3.80924,2625.2,2624.7,0.13152581]
[1727751998570,3.80909,2625.3,2624.7,3.94146581]
[1727751998802,3.80909,2625.3,2624.8,3.0]
[1727751998967,3.80924,2625.2,2624.8,0.13128165]
[1727751999176,3.80909,2625.3,2624.6,3.7993]
[1727751999566,3.80909,2625.3,2624.7,0.13130005]
[1727752000088,3.80923,2625.2,2624.7,0.13130005]
[1727752000393,3.80923,2625.2,2624.7,0.90538406]
[1727752002260,3.80909,2625.3,2624.7,0.90538406]
[1727752002497,3.80909,2625.3,2624.7,4.71524406]
[1727752002857,3.80909,2625.3,2624.7,0.90538406]
[1727752003057,3.80923,2625.2,2624.7,0.90538406]
[1727752003281,3.80909,2625.3,2624.7,0.90538406]
[1727752003498,3.80909,2625.3,2624.7,4.71524406]
[1727752003700,3.80909,2625.3,2624.8,4.23245141]
[1727752004192,3.80928,2625.2,2624.9,0.13126325]
[1727752004769,3.80909,2625.3,2624.9,0.13126325]
[1727752005104,3.80902,2625.4,2625.0,0.7934]
[1727752005395,3.80913,2625.3,2625.1,0.13059253]
[1727752005974,3.80887,2625.5,2625.1,0.13059253]
[1727752006171,3.80904,2625.4,2625.1,0.13059253]
[1727752006476,4.5865,2625.7,2625.1,3.61266083]
[1727752006672,3.80829,2625.9,2625.3,3.0]
[1727752006673,3.80839,2625.8,2625.3,3.0]
[1727752006871,3.80838,2625.8,2625.3,3.0]
[1727752007103,3.80838,2625.8,2625.4,0.130303]
[1727752007403,3.80801,2626.1,2625.5,3.7715]
[1727752007610,3.80801,2626.1,2625.6,0.13026188]
[1727752007768,17.70812,2626.0,2625.6,0.13026188]
[1727752008534,3.80823,2625.9,2625.6,0.13026188]
[1727752009062,7.61654,2625.9,2625.6,0.13026188]
[1727752009865,3.80823,2625.9,2625.6,0.13026188]
[1727752010283,3.80844,2625.8,2625.6,0.13026188]
[1727752010797,3.80823,2625.9,2625.7,0.1302435]
[1727752010985,3.80823,2625.9,2625.4,3.757311]
[1727752011202,3.80823,2625.9,2625.5,0.13028027]
[1727752012020,7.61654,2625.9,2625.5,0.13028027]
[1727752012809,3.80823,2625.9,2625.5,0.13028027]
[1727752013730,7.61653,2625.9,2625.5,0.13028027]
[1727752013915,3.80823,2625.9,2625.5,0.13028027]
[1727752014714,7.61652,2625.9,2625.5,0.13028027]
[1727752014891,3.80852,2625.7,2625.5,0.13028027]
[1727752015090,3.80854,2625.7,2625.5,0.13028027]
[1727752015289,3.80854,2625.7,2625.3,0.7639]
[1727752015598,7.61717,2625.7,2625.3,0.7639]
[1727752015909,7.61717,2625.7,2625.4,0.12555]
[1727752016086,3.80865,2625.6,2625.4,0.12555]
[1727752016288,3.80865,2625.6,2625.1,0.7661]
[1727752016499,3.80884,2625.5,2625.1,0.7661]
[1727752017179,5.18767511,2625.7,2625.1,4.57539]
[1727752017379,5.18767511,2625.7,2625.2,3.0]
[1727752017618,1.37913511,2625.7,2625.2,6.80915]
[1727752017812,3.80838,2625.8,2625.2,6.80915]
[1727752020939,3.80838,2625.8,2625.3,0.12562025]
[1727752021340,3.80838,2625.8,2625.2,6.80915]
[1727752021600,3.80838,2625.8,2625.3,0.12562025]
[1727752021820,3.80838,2625.8,2625.2,6.80915]
[1727752021992,3.80838,2625.8,2625.3,0.12562025]
[1727752022194,3.80838,2625.8,2625.2,6.80915]
[1727752022430,3.80855,2625.7,2625.3,0.12562025]
[1727752022609,3.80855,2625.7,2625.2,6.80915]
[1727752022808,3.80855,2625.7,2625.3,0.12562025]
[1727752023139,3.80855,2625.7,2625.2,6.80915]
[1727752023317,3.80855,2625.7,2625.4,0.12560186]
[1727752023526,6.4418432,2625.9,2625.4,3.0]
[1727752023829,6.4418432,2625.9,2625.5,0.12558347]
[1727752024247,3.80838,2625.8,2625.5,0.12558347]
[1727752025603,10.2501632,2625.9,2625.5,0.12558347]
[1727752026132,6.4418432,2625.9,2625.5,0.12558347]
[1727752026937,6.4418432,2625.9,2625.5,0.88858347]
[1727752027470,3.8083,2625.9,2625.5,0.88858347]
[1727752027740,21.24872793,2626.0,2625.5,4.69733347]
[1727752027899,17.44063793,2626.0,2625.5,4.69733347]
[1727752028532,13.9,2626.0,2625.6,3.80856]
[1727752028734,13.9,2626.0,2625.7,3.8085]
[1727752028934,13.9,2626.0,2625.7,0.12547756]
[1727752029137,13.9,2626.0,2625.8,0.7954]
[1727752029310,13.9,2626.0,2625.8,4.60373]
[1727752029514,13.9,2626.0,2625.9,0.12544079]
[1727752033244,13.9,2626.0,2625.9,8.23405079]
[1727752038020,13.9,2626.0,2625.9,11.77468872]
[1727752038225,13.9,2626.0,2625.9,12.15688872]
[1727752038533,13.9,2626.0,2625.9,59.34999095]
[1727752038762,13.9,2626.0,2625.9,50.13650648]
[1727752039054,13.9,2626.0,2625.9,51.1900587]
[1727752039465,13.41132812,2626.0,2625.9,51.1900587]
[1727752039955,13.41132812,2626.0,2625.9,33.2238997]
[1727752040159,13.40942405,2626.0,2625.9,32.3636687]
[1727752040344,13.40942405,2626.0,2625.9,30.38873637]
[1727752040525,13.40942405,2626.0,2625.9,30.90255994]
[1727752041338,11.88031058,2626.0,2625.9,30.90255994]
[1727752041541,11.88031058,2626.0,2625.9,29.87175219]
[1727752041867,8.8943717,2626.0,2625.9,29.87175219]
[1727752042025,8.39117844,2626.0,2625.9,33.41239012]
[1727752042227,1.2499145,2626.0,2625.9,35.85968052]
[1727752042449,0.1259583,2626.3,2626.2,10.55678]
[1727752042648,0.1259583,2626.3,2626.2,71.12149147]
[1727752043361,0.1259583,2626.3,2626.2,44.03936121]
[1727752044769,3.80539,2627.9,2627.2,0.7644]
[1727752044928,3.80539,2627.9,2627.4,3.0]
[1727752045258,3.80539,2627.9,2627.5,0.74322622]
[1727752045463,3.80539,2627.9,2627.6,0.12395807]
[1727752045961,4.55733,2628.0,2627.6,0.12395807]
[1727752046167,4.50733,2628.0,2627.6,3.12395807]
[1727752046958,0.7021,2628.0,2627.6,0.87905807]
[1727752047157,0.7021,2628.0,2627.6,4.7218745]
[1727752047462,0.7021,2628.0,2627.6,4.79798177]
[1727752047965,3.80511,2628.1,2627.6,4.79798128]
[1727752048655,3.80511,2628.1,2627.6,8.5275945]
[1727752049360,3.80511,2628.1,2627.6,1.7218745]
[1727752049672,3.80511,2628.1,2627.6,4.7218745]
[1727752049835,8.38919,2628.3,2627.6,8.5275145]
[1727752050166,5.77734279,2628.3,2627.6,8.5275145]
[1727752050465,9.58221279,2628.3,2627.6,8.5275145]
[1727752050626,5.77734279,2628.3,2627.7,0.55]
[1727752050827,9.58218279,2628.3,2627.7,0.55]
[1727752051037,9.58218279,2628.3,2627.8,0.12375738]
[1727752051269,5.77734279,2628.3,2627.8,3.0]
[1727752051431,5.77734279,2628.3,2627.9,0.12373902]
[1727752053359,0.7796,2628.3,2627.9,3.92904902]
[1727752053598,3.80424,2628.7,2628.0,3.0]
[1727752053764,0.7619,2628.6,2628.0,7.56315]
[1727752053930,0.7619,2628.6,2628.1,0.12321465]
[1727752054128,3.80452,2628.5,2628.1,0.12321465]
[1727752054736,0.7619,2628.6,2628.1,0.12321465]
[1727752054948,4.56624,2628.6,2628.1,0.12321465]
[1727752055129,4.56624,2628.6,2628.1,3.92821465]
[1727752055330,4.56624,2628.6,2628.2,3.0]
[1727752055761,4.56624,2628.6,2628.3,0.12317795]
[1727752056842,3.80411,2628.8,2628.4,0.8022]
[1727752057048,3.80417,2628.7,2628.4,0.8022]
[1727752057244,3.80417,2628.7,2628.5,0.1229385]
[1727752057434,3.80411,2628.8,2628.5,0.1229385]
[1727752058169,3.80409,2628.8,2628.5,0.1229385]
[1727752058367,7.60819,2628.8,2628.5,0.1229385]
[1727752058528,3.80409,2628.8,2628.5,0.1229385]
[1727752058729,3.80422,2628.7,2628.5,0.1229385]
[1727752058928,3.80409,2628.8,2628.5,0.1229385]
[1727752059171,3.80409,2628.8,2628.2,7.63499]
[1727752059382,7.60818,2628.8,2628.6,0.12288565]
[1727752059527,3.80409,2628.8,2628.2,3.8302]
[1727752059733,3.80409,2628.8,2628.7,0.12286731]
[1727752059927,3.80409,2628.8,2628.2,7.635]
[1727752060173,3.80401,2628.8,2628.7,0.12286731]
[1727752060465,4.7278383,2628.9,2628.4,3.0]
[1727752060466,8.5317983,2628.9,2628.4,3.0]
[1727752060666,3.80405,2628.8,2628.4,3.0]
[1727752060968,3.80405,2628.8,2628.5,0.122904]
[1727752061471,4.7278383,2628.9,2628.5,0.122904]
[1727752062468,0.9239583,2628.9,2628.5,0.122904]
[1727752062645,0.1259583,2628.9,2628.6,0.7618]
[1727752063046,3.9298383,2628.9,2628.7,0.12286731]
[1727752063448,3.80401,2628.8,2628.7,0.12286731]
[1727752063650,11.27445623,2628.9,2628.4,3.7604]
[1727752063853,7.47047623,2628.9,2628.4,3.7604]
[1727752064049,3.80404,2628.8,2628.4,3.7604]
[1727752064363,7.47047623,2628.9,2628.5,0.12249863]
[1727752065577,3.80402,2628.8,2628.5,0.12249863]
[1727752065947,7.47048623,2628.9,2628.5,0.12249863]
[1727752066593,3.80403,2628.8,2628.5,0.12249863]
[1727752066770,7.47048623,2628.9,2628.5,0.12249863]
[1727752067769,8.68089985,2628.9,2628.5,0.12249863]
[1727752067964,7.34493793,2628.6,2628.5,0.12249863]
[1727752068166,4.6265,2628.6,2628.5,0.12249863]
[1727752068351,4.36283793,2628.8,2628.2,0.7626]
[1727752068550,4.62623,2628.8,2628.5,0.12249863]
[1727752068741,0.1259583,2628.9,2628.3,0.07608508]
[1727752068976,0.1259583,2628.9,2628.6,0.12248029]
[1727752069143,0.1259583,2628.9,2628.6,3.80426]
[1727752069449,0.1259583,2628.9,2628.7,0.12246194]